fUSD/lending_fUSD_20250116
["ID","MTS","AMOUNT","RATE_DAILY","PERIOD"]
[349236817,1737065441154,-1105.8935031,0.00031952,4]
[349236818,1737065441164,-433.05101645,0.00031954,2]
[349236819,1737065441174,-200.0,0.00031954,2]
[349236820,1737065441183,-331.72702618,0.00031955,4]
[349236821,1737065441194,-2008.75187084,0.00031956,2]
[349236822,1737065441204,-828.1793086,0.00031959,2]
[349236823,1737065441214,-433.05101645,0.0003196,2]
[349236824,1737065441224,-1786.35080905,0.00031962,2]
[349236825,1737065441234,-250.27172344,0.00031969,2]
[349236826,1737065441243,-2142.66866224,0.0003197,4]
[349236827,1737065441253,-4046.44601717,0.00031971,4]
[349236828,1737065441263,-458.20929117,0.00031972,4]
[349236829,1737065441272,-3793.54314109,0.00031972,2]
[349236830,1737065441285,-2357.8010291,0.00031972,4]
[349236831,1737065441297,-2142.66866224,0.00031975,4]
[349236832,1737065441306,-711.56450199,0.00031976,2]
[349236833,1737065441315,-759.00213546,0.00031976,4]
[349236834,1737065441329,-1905.44086299,0.00031977,4]
[349236835,1737065441343,-433.05101646,0.00031977,2]
[349236836,1737065441352,-200.0,0.00031978,2]
[349236837,1737065441362,-200.0,0.00031978,2]
[349236838,1737065441371,-3793.54314109,0.00031981,2]
[349236839,1737065441380,-828.1793086,0.00031982,2]
[349236840,1737065441391,-3793.54314109,0.00031983,2]
[349236841,1737065441400,-1786.35080905,0.00031983,2]
[349236842,1737065441410,-200.0,0.00031984,2]
[349236843,1737065441419,-711.56450199,0.00031986,2]
[349236844,1737065441428,-711.56450199,0.00031987,2]
[349236845,1737065441437,-266.95650501,0.0003199,4]
[349236846,1737065441447,-2142.66866224,0.00031992,4]
[349236847,1737065441457,-867.39126251,0.00031992,4]
[349236848,1737065441466,-433.05101646,0.00031994,2]
[349236849,1737065441477,-3793.54314109,0.00031995,2]
[349236850,1737065441486,-867.39126251,0.00031997,4]
[349236851,1737065441496,-200.0,0.00031998,2]
[349236852,1737065441505,-461.92108423,0.00031998,4]
[349236853,1737065441516,-250.27172344,0.00031998,2]
[349236854,1737065441525,-2004.54,0.00032,7]
[349236855,1737065441538,-1036.77515915,0.00032001,2]
[349236856,1737065441548,-1105.89350309,0.00032001,4]
[349236857,1737065441557,-1786.35080905,0.00032002,2]
[349236858,1737065441566,-461.92108423,0.00032004,4]
[349236859,1737065441575,-813.1793086,0.00032004,2]
[349236860,1737065441584,-711.56450199,0.00032004,2]
[349236861,1737065441594,-711.56450199,0.00032005,2]
[349236862,1737065441603,-2008.75187084,0.00032006,2]
[349236863,1737065441612,-867.39126251,0.00032007,4]
[349236864,1737065441622,-1786.35080905,0.00032009,2]
[349236865,1737065441631,-24771.2878,0.0003201,2]
[349236866,1737065441640,-1000.0,0.0003201,2]
[349236867,1737065441650,-200.0,0.0003201,2]
[349236868,1737065441659,-331.72702618,0.0003201,4]
[349236869,1737065441668,-4046.44601717,0.0003201,4]
[349236870,1737065441678,-433.05101646,0.0003201,2]
[349236871,1737065441687,-3793.54314109,0.00032013,2]
[349236872,1737065441696,-883.39126251,0.00032015,4]
[349236873,1737065441706,-3793.54314109,0.00032015,2]
[349236874,1737065441715,-867.39126251,0.00032017,4]
[349236875,1737065441724,-2008.75187084,0.00032023,2]
[349236876,1737065441734,-461.92108422,0.00032024,4]
[349236877,1737065441743,-461.92108422,0.00032024,4]
[349236878,1737065441752,-461.92108422,0.00032025,4]
[349236879,1737065441762,-883.39126251,0.00032027,4]
[349236880,1737065441772,-429.93842545,0.00032028,2]
[349236881,1737065441782,-461.92108422,0.00032029,4]
[349236882,1737065441794,-250.27172344,0.00032033,2]
[349236883,1737065441804,-1105.89350309,0.00032033,4]
[349236884,1737065441814,-266.95650501,0.00032033,4]
[349236885,1737065441824,-2142.66866224,0.00032034,4]
[349236886,1737065441835,-867.39126251,0.00032034,4]
[349236887,1737065441846,-1036.77515914,0.00032034,2]
[349236888,1737065441856,-429.57121047,0.00032035,2]
[349236889,1737065441869,-2210.43846478,0.00032036,2]
[349236890,1737065441879,-883.39126251,0.00032037,4]
[349236891,1737065441888,-458.20929117,0.00032037,4]
[349236892,1737065441897,-429.57121047,0.00032037,2]
[349236893,1737065441907,-1905.44086299,0.00032038,4]
[349236894,1737065441917,-1105.8935031,0.00032039,4]
[349236895,1737065441926,-1105.8935031,0.0003204,4]
[349236896,1737065441936,-458.20929117,0.00032042,4]
[349236897,1737065441946,-2210.43846478,0.00032042,2]
[349236898,1737065441955,-2008.75187084,0.00032043,2]
[349236899,1737065441965,-200.0,0.00032044,2]
[349236900,1737065441975,-310.99408704,0.00032045,2]
[349236901,1737065441984,-461.92108423,0.00032045,4]
[349236902,1737065441993,-433.05101645,0.00032045,2]
[349236903,1737065442002,-10741.9186,0.00032045,2]
[349236904,1737065442012,-1905.44086299,0.00032045,4]
[349236905,1737065442021,-5412.9584,0.00032046,2]
[349236906,1737065442031,-1710.6681,0.00032046,2]
[349236907,1737065442041,-5000.0,0.00032046,2]
[349236908,1737065442050,-270.80641707,0.00032046,4]
[349236909,1737065442060,-1728.54321073,0.00032046,2]
[349236910,1737065442070,-923.5551431,0.00032046,2]
[349236911,1737065442081,-248.48607,0.00032046,2]
[349236912,1737065442091,-1811.64680833,0.00032046,2]
[349236913,1737065442100,-1500.0,0.00032046,2]
[349236914,1737065442109,-4994.3394,0.00032046,2]
[349236915,1737065442120,-458.20929117,0.00032047,4]
[349236916,1737065442129,-4046.44601717,0.00032049,4]
[349236917,1737065442139,-883.39126251,0.0003205,4]
[349236918,1737065442149,-759.00213546,0.00032052,4]
[349236919,1737065442160,-2357.8010291,0.00032052,4]
[349236920,1737065442170,-1905.44086299,0.00032053,4]
[349236921,1737065442180,-980.3,0.00032055,2]
[349236922,1737065442190,-1207.38,0.00032055,2]
[349236923,1737065442199,-772.46,0.00032055,2]
[349236924,1737065442209,-772.46,0.00032055,2]
[349236925,1737065442218,-772.46,0.00032055,2]
[349236926,1737065442228,-772.46,0.00032055,2]
[349236927,1737065442237,-461.92108423,0.00032057,4]
[349236928,1737065442247,-433.05101645,0.00032059,2]
[349236929,1737065442257,-1036.77515914,0.00032059,2]
[349236930,1737065442266,-1105.89350309,0.00032059,4]
[349236931,1737065442275,-2210.43846478,0.0003206,2]
[349236932,1737065442286,-200.0,0.0003206,2]
[349236933,1737065442296,-331.72702618,0.00032061,4]
[349236934,1737065442309,-200.0,0.00032061,2]
[349236935,1737065442324,-1036.77515914,0.00032061,2]
[349236936,1737065442338,-461.92108423,0.00032063,4]
[349236937,1737065442348,-429.57121047,0.00032063,2]
[349236938,1737065442358,-1786.35080905,0.00032064,2]
[349236939,1737065442367,-813.1793086,0.00032066,2]
[349236940,1737065442377,-429.57121047,0.00032068,2]
[349236941,1737065442387,-331.72702618,0.00032072,4]
[349236942,1737065442397,-250.27172344,0.00032073,2]
[349236943,1737065442407,-200.0,0.00032075,2]
[349236944,1737065442416,-310.99408704,0.00032076,2]
[349236945,1737065442425,-266.95650501,0.00032077,4]
[349236946,1737065442435,-711.56450199,0.00032078,2]
[349236947,1737065442444,-1036.77515915,0.00032079,2]
[349236948,1737065442455,-4046.44601717,0.00032079,4]
[349236949,1737065442464,-1105.89350309,0.00032081,4]
[349236950,1737065442473,-2357.8010291,0.00032082,4]
[349236951,1737065442482,-1105.8935031,0.00032084,4]
[349236952,1737065442491,-759.00213546,0.00032088,4]
[349236953,1737065442501,-759.00213546,0.00032088,4]
[349236954,1737065442510,-331.72702618,0.00032089,4]
[349236955,1737065442520,-1036.77515914,0.0003209,2]
[349236956,1737065442529,-2142.66866224,0.00032091,4]
[349236957,1737065442541,-4046.44601717,0.00032093,4]
[349236958,1737065442550,-266.95650501,0.00032095,4]
[349236959,1737065442559,-458.20929117,0.00032095,4]
[349236960,1737065442569,-266.95650501,0.00032099,4]
[349236961,1737065442579,-581.85788647,0.000321,3]
[349236962,1737065442588,-150.0,0.00032145,30]
[349236963,1737065442597,-500.0,0.00032145,2]
[349236964,1737065442606,-1000.0,0.00032145,2]
[349236965,1737065442616,-500.0,0.00032145,2]
[349236966,1737065442626,-105254.88406993,0.00032146,5]
[349237012,1737065443191,-102389.7025773,0.00032146,5]
[349237014,1737065443203,-25820.6240994,0.00032146,5]
[349237017,1737065443214,-117523.6734315,0.00032146,5]
[349237029,1737065443345,-10851.82398374,0.00032146,5]
[349237031,1737065443360,-1728.77262585,0.00032146,5]
[349237033,1737065443371,-1925.36,0.00032146,5]
[349237038,1737065443408,-419.79,0.00032146,5]
[349237040,1737065443419,-2004.69357214,0.00032146,5]
[349237042,1737065443430,-342.38583115,0.00032146,5]
[349237045,1737065443442,-504.84171802,0.00032146,5]
[349237047,1737065443453,-1693.83655973,0.00032146,5]
[349237059,1737065443822,-1384.6170358,0.00032046,2]
[349237060,1737065443832,-999.0,0.00032145,2]
[349237061,1737065443841,-16555.77927809,0.00032146,5]
[349237062,1737065443860,-32721.15975101,0.00032146,5]
[349237063,1737065443872,-420.82560004,0.00032146,5]
[349237064,1737065443883,-607.22410007,0.00032146,5]
[349237065,1737065443894,-254715.00783037,0.00032146,5]
[349237066,1737065443910,-432903.18352648,0.00032146,5]
[349237067,1737065443920,-2330646.65075468,0.00032146,30]
[349237068,1737065443931,-331596.09320843,0.00032146,30]
[349237069,1737065443942,-527.71969016,0.00032146,30]
[349237070,1737065444104,-421996.8257296,0.00032146,30]
[349237071,1737065444116,-1000.8,0.00032146,30]
[349237072,1737065444140,-304.52999997,0.00032146,30]
[349237073,1737065444151,-425.73802,0.00032146,30]
[349237075,1737065446063,-1000.93842479,0.00032146,30]
[349237076,1737065446173,-298.7030008,0.00032146,30]
[349237077,1737065446200,-3329.91357953,0.00032146,30]
[349237078,1737065446277,-1439.03822729,0.00032146,30]
[349237079,1737065568840,160.72,0.00010137,2]
[349237202,1737066328428,528.40593458,0.00011366,2]
[349237211,1737066355158,943.19492342,0.000129,7]
[349237213,1737066380253,3004.27267064,9.99e-05,2]
[349237236,1737066440098,-210.646416,0.00022785,2]
[349237237,1737066440119,-18.48773974,0.000229,2]
[349237238,1737066445096,-148.17892692,0.000229,2]
[349237239,1737066445119,-500.0,0.00023,2]
[349237240,1737066445141,-264.72231839,0.00023,2]
[349237242,1737066452096,-235.27768161,0.00023,2]
[349237243,1737066452119,-896.21131128,0.00023,2]
[349237255,1737066478666,2515.64106328,0.0001,2]
[349237267,1737066522106,256.64493588,0.000107,2]
[349237274,1737066557882,-6.63714391,0.00023,2]
[349237275,1737066578298,155.89,0.00010137,2]
[349237277,1737066581489,-733.0,0.00023478,2]
[349237278,1737066581510,-197.06280231,0.00023479,2]
[349237279,1737066581532,-300.0,0.00023578,2]
[349237307,1737066632152,-297.72080044,0.00023579,120]
[349237308,1737066632161,-29.03916881,0.00023579,3]
[349237319,1737066632246,-428.85185737,0.00023579,3]
[349237330,1737066632338,-461.02550753,0.00023579,3]
[349237333,1737066632352,-13751.39889051,0.00023579,3]
[349237335,1737066632361,-593.76315131,0.00023579,2]
[349237336,1737066632371,-1000.0,0.00023579,120]
[349237338,1737066632381,-50000.0,0.00025581,2]
[349237340,1737066632391,-500.0,0.000261,30]
[349237342,1737066632401,-500.0,0.000261,30]
[349237343,1737066632410,-500.0,0.000261,30]
[349237344,1737066632420,-500.0,0.000261,30]
[349237345,1737066632429,-789.0,0.000262,3]
[349237346,1737066632439,-883.91,0.00027849,2]
[349237347,1737066632449,-23278.72654795,0.00028313,2]
[349237348,1737066632462,-250.0,0.00029919,2]
[349237349,1737066632471,-1000.0,0.0003,2]
[349237350,1737066632480,-10012.49419844,0.0003,30]
[349237351,1737066632490,-250.0,0.00030043,2]
[349237352,1737066632500,-428.25,0.00030075,120]
[349237353,1737066632510,-883.91,0.00030113,2]
[349237354,1737066632519,-36718.78,0.00030407,2]
[349237355,1737066632530,-182.63929252,0.00030407,30]
[349237356,1737066632539,-9405.22,0.0003045,2]
[349237357,1737066632550,-500.0,0.00030457,2]
[349237358,1737066632560,-458.5,0.00030489,2]
[349237359,1737066632569,-500.0,0.00030654,2]
[349237360,1737066632578,-150.0,0.000307,2]
[349237361,1737066632588,-157.22,0.00030703,3]
[349237362,1737066632597,-447.24,0.00030785,2]
[349237363,1737066632608,-1000.0,0.0003088,2]
[349237364,1737066632618,-330.58,0.00030924,2]
[349237365,1737066632628,-153.8905272,0.00030962,2]
[349237366,1737066632638,-185.71,0.00030975,2]
[349237367,1737066632647,-70892.11253932,0.00031062,2]
[349237368,1737066632657,-23900.0,0.00031062,2]
[349237370,1737066632666,-438.08,0.00031096,2]
[349237372,1737066632675,-438.08,0.00031096,2]
[349237374,1737066632685,-876.09,0.00031141,2]
[349237376,1737066632695,-2751.0,0.00031179,120]
[349237377,1737066632704,-153.89052716,0.00031233,2]
[349237378,1737066632714,-876.16,0.00031241,2]
[349237379,1737066632723,-438.08,0.00031241,2]
[349237380,1737066632732,-438.08,0.00031241,2]
[349237381,1737066632742,-438.08,0.00031241,2]
[349237383,1737066632751,-20000.0,0.00031382,2]
[349237385,1737066632761,-153.89052716,0.00031504,2]
[349237387,1737066632770,-300.56,0.00031507,2]
[349237389,1737066632779,-399.66,0.00031507,2]
[349237391,1737066632789,-150.0,0.00031507,2]
[349237392,1737066632798,-1000.0,0.0003162,2]
[349237394,1737066632807,-3781.0722,0.0003173,2]
[349237395,1737066632817,-5000.0,0.0003173,2]
[349237396,1737066632826,-153.89052716,0.00031775,2]
[349237397,1737066632835,-721.8786758,0.000318,120]
[349237398,1737066632845,-270.80641706,0.000318,4]
[349237399,1737066632857,-153.92585718,0.000318,2]
[349237400,1737066632867,-3000.0,0.0003182,2]
[349237401,1737066632876,-1621.0,0.00031824,2]
[349237402,1737066632885,-151.34616858,0.00031829,2]
[349237403,1737066632895,-134396.17772872,0.0003183,2]
[349237404,1737066632905,-429.93842545,0.00031872,2]
[349237405,1737066632914,-1000.0,0.000319,2]
[349237406,1737066632923,-18298.6233,0.00031945,2]
[349237407,1737066632933,-500.0,0.00031984,2]
[349237408,1737066632942,-500.0,0.00031984,2]
[349237409,1737066632952,-500.0,0.00031984,2]
[349237410,1737066632962,-500.0,0.00031984,2]
[349237411,1737066632972,-500.0,0.00031984,2]
[349237412,1737066632982,-446.6598,0.00031984,2]
[349237413,1737066632993,-554.1521,0.00031984,2]
[349237414,1737066633003,-26924.85632348,0.00032,7]
[349237415,1737066633013,-14596.939874,0.00032,2]
[349237416,1737066633022,-1057.0,0.00032,2]
[349237417,1737066633033,-500.0,0.00032,2]
[349237418,1737066633196,-514.4409,0.00032046,2]
[349237419,1737066633207,-45699.0724,0.00032046,2]
[349237420,1737066633217,-5377.8791,0.00032046,2]
[349237421,1737066633228,-500.21382716,0.00032046,3]
[349237422,1737066633238,-153.89052716,0.00032046,2]
[349237423,1737066633248,-1500.0,0.00032046,2]
[349237424,1737066633258,-879.45,0.00032055,2]
[349237425,1737066633268,-1198.03,0.00032055,2]
[349237426,1737066633278,-150.0,0.00032063,2]
[349237427,1737066633288,-92269.61697105,0.000321,30]
[349237428,1737066633298,-924.0,0.0003211,2]
[349237429,1737066633308,-666.0,0.00032145,10]
[349237430,1737066633318,-150.0,0.00032145,30]
[349237431,1737066633328,-500.0,0.00032145,2]
[349237432,1737066633338,-999.0,0.00032145,2]
[349237433,1737066633348,-500.0,0.00032145,2]
[349237434,1737066633360,-529228.23268803,0.00032146,5]
[349237435,1737066633409,-495.47940221,0.00032146,5]
[349237438,1737066638105,-400.0,0.000311,11]
[349237439,1737066638116,-16.3300127,0.000312,11]
[349237440,1737066638244,-783.6699873,0.000312,11]
[349237441,1737066638255,-1300.0,0.000313,11]
[349237442,1737066638265,-24468.07218717,0.00032146,5]
[349237443,1737066638274,-322284.51178237,0.00032146,30]
[349237444,1737066638286,-840827.77643889,0.00032146,30]
[349237445,1737066638324,-723.25852889,0.00032146,30]
[349237446,1737066638339,-381.61712475,0.00032146,30]
[349237447,1737066638354,-14246.39927606,0.00032146,30]
[349237448,1737066638367,-6342.12687508,0.00032146,30]
[349237449,1737066638382,-648.8,0.00032146,30]
[349237456,1737066640737,-973.34158391,0.000314,11]
[349237457,1737066640749,-726.65841609,0.000314,11]
[349237458,1737066640759,-3559.33948183,0.00032146,30]
[349237460,1737066640771,-2406.0335025,0.00032146,30]
[349237480,1737066643171,-2100.0,0.000315,11]
[349237481,1737066643180,-1168.9080385,0.00032146,30]
[349237482,1737066643196,-2021.28832836,0.00032146,30]
[349237486,1737066643272,-4843.8,0.00032146,30]
[349237487,1737066643284,-1152.9712,0.00032146,30]
[349237488,1737066643295,-1630.19107928,0.00032146,30]
[349237489,1737066643367,-2103.88905867,0.00032146,30]
[349237490,1737066643451,-388.5620595,0.00032146,30]
[349237491,1737066643466,-660.43099983,0.00032146,30]
[349237493,1737066643477,-2695.45171749,0.00032146,30]
[349237497,1737066646191,-400.0,0.000316,11]
[349237498,1737066646200,-400.0,0.000317,11]
[349237499,1737066646210,-164.17636212,0.00032146,30]
[349237500,1737066646226,-6300.0,0.00032146,30]
[349237502,1737066646342,-7107.57923962,0.00032146,30]
[349237503,1737066646354,-2042.65538004,0.00032146,30]
[349237504,1737066646784,-2007.58642047,0.00032146,30]
[349237505,1737066646797,-5555.75949983,0.00032146,30]
[349237506,1737066646808,-3298.12190352,0.00032146,30]
[349237507,1737066646821,-69457.29340278,0.00032146,30]
[349237508,1737066646833,-3269.49998,0.00032146,30]
[349237509,1737066646858,-68214.17325196,0.00032146,30]
[349237510,1737066647030,-56814.24572779,0.00032146,30]
[349237511,1737066647043,-1266.56918056,0.00032146,30]
[349237512,1737066647054,-363.0,0.00032146,30]
[349237528,1737067376759,230.35,0.00012329,2]
[349237530,1737067475720,158.17,0.00010137,2]
[349237531,1737067476006,158.17,0.00018594,2]
[349237535,1737067625111,-746.79487832,0.000269,2]
[349237536,1737067625134,-540.66795266,0.0002695,2]
[349237537,1737067633211,-614.10152521,0.0002695,2]
[349237538,1737067633238,-550.0,0.00027,2]
[349237539,1737067633260,-137.42474195,0.00027,2]
[349237540,1737067634095,-1552.36052825,0.00027,2]
[349237541,1737067634120,-158.17,0.0002705,2]
[349237542,1737067634146,-600.0,0.00029,2]
[349237543,1737067634171,-9448.13905593,0.00029,2]
[349237553,1737067755259,-795.51,0.00028338,2]
[349237596,1737067832513,-300.0,0.00029539,2]
[349237597,1737067832522,-2971.0,0.0002954,2]
[349237599,1737067832534,-843.40306458,0.0002954,2]
[349237600,1737067832545,-261.83821681,0.0002954,2]
[349237601,1737067832566,-42485.75871861,0.0002954,2]
[349237602,1737067832576,-1000.0,0.00030256,2]
[349237603,1737067832585,-250.0,0.00030264,2]
[349237604,1737067832596,-1460.0973753,0.00030283,2]
[349237605,1737067832606,-721.35,0.00030283,120]
[349237606,1737067832615,-250.0,0.00030436,2]
[349237607,1737067832624,-795.51,0.00030602,2]
[349237608,1737067832634,-229.25,0.00030677,2]
[349237609,1737067832644,-400.0,0.000309,11]
[349237610,1737067832654,-287.0,0.00030998,2]
[349237611,1737067832664,-23900.0,0.00030999,2]
[349237612,1737067832674,-841.76,0.0003106,3]
[349237613,1737067832684,-3509.351,0.00031061,28]
[349237614,1737067832693,-170.47,0.00031061,28]
[349237615,1737067832702,-500.0,0.00031061,3]
[349237616,1737067832712,-829.15,0.00031061,3]
[349237617,1737067832721,-546.01042173,0.00031061,3]
[349237618,1737067832731,-500.0,0.00031061,3]
[349237619,1737067832740,-500.0,0.00031061,3]
[349237620,1737067832750,-500.0,0.00031061,3]
[349237621,1737067832760,-500.0,0.00031061,3]
[349237622,1737067832769,-500.0,0.00031061,3]
[349237623,1737067832778,-500.0,0.00031061,3]
[349237624,1737067832787,-500.0,0.00031061,3]
[349237625,1737067832797,-547.89985272,0.00031061,3]
[349237626,1737067832806,-500.0,0.00031061,3]
[349237627,1737067832817,-729.16,0.00031061,3]
[349237628,1737067832830,-500.0,0.00031061,3]
[349237629,1737067832839,-500.0,0.00031061,3]
[349237630,1737067832849,-500.0,0.00031061,3]
[349237631,1737067832859,-500.0,0.00031061,3]
[349237632,1737067832869,-500.0,0.00031061,3]
[349237633,1737067832879,-500.0,0.00031061,3]
[349237634,1737067832889,-502.12341391,0.00031061,3]
[349237635,1737067832898,-500.0,0.00031061,3]
[349237636,1737067832908,-500.0,0.00031061,3]
[349237637,1737067832917,-500.0,0.00031061,3]
[349237638,1737067832927,-2838.1,0.00031061,3]
[349237639,1737067832936,-620.92,0.00031061,3]
[349237640,1737067832946,-502.59174536,0.00031061,3]
[349237642,1737067832955,-500.0,0.00031061,3]
[349237644,1737067832964,-503.35680048,0.00031061,3]
[349237646,1737067832974,-500.0,0.00031061,3]
[349237648,1737067832983,-500.0,0.00031061,3]
[349237650,1737067832991,-500.0,0.00031061,3]
[349237652,1737067833000,-500.0,0.00031061,3]
[349237654,1737067833009,-976.76,0.00031061,3]
[349237656,1737067833019,-612.89549505,0.00031061,3]
[349237659,1737067833028,-500.52548492,0.00031061,3]
[349237662,1737067833038,-500.0,0.00031061,3]
[349237664,1737067833047,-500.0,0.00031061,3]
[349237666,1737067833056,-2463.0,0.00031061,3]
[349237668,1737067833066,-500.0,0.00031061,3]
[349237671,1737067833076,-500.0,0.00031061,3]
[349237672,1737067833085,-500.0,0.00031061,3]
[349237674,1737067833095,-500.0,0.00031061,3]
[349237676,1737067833104,-500.0,0.00031061,3]
[349237679,1737067833114,-500.0,0.00031061,3]
[349237680,1737067833124,-501.55899563,0.00031061,3]
[349237682,1737067833134,-500.0,0.00031061,3]
[349237684,1737067833144,-500.0,0.00031061,3]
[349237686,1737067833154,-500.0,0.00031061,3]
[349237688,1737067833164,-608.09522471,0.00031061,3]
[349237689,1737067833174,-500.0,0.00031061,3]
[349237690,1737067833183,-500.0,0.00031061,3]
[349237691,1737067833194,-500.0,0.00031061,3]
[349237692,1737067833203,-500.0,0.00031061,3]
[349237693,1737067833213,-500.0,0.00031061,3]
[349237694,1737067833222,-500.0,0.00031061,3]
[349237695,1737067833231,-500.0,0.00031061,3]
[349237696,1737067833241,-5837.04,0.00031061,3]
[349237697,1737067833251,-500.0,0.00031061,3]
[349237698,1737067833260,-500.0,0.00031061,3]
[349237699,1737067833270,-500.0,0.00031061,3]
[349237700,1737067833279,-540.10937468,0.00031061,3]
[349237701,1737067833288,-500.0,0.00031061,3]
[349237702,1737067833298,-1195.75,0.00031061,3]
[349237703,1737067833308,-500.0,0.00031061,3]
[349237704,1737067833318,-2047.0,0.00031061,3]
[349237705,1737067833328,-500.0,0.00031061,3]
[349237706,1737067833339,-3229.62,0.00031061,3]
[349237707,1737067833348,-500.0,0.00031061,3]
[349237708,1737067833358,-500.0,0.00031061,3]
[349237709,1737067833369,-932.41,0.00031061,3]
[349237710,1737067833379,-500.0,0.00031061,3]
[349237711,1737067833389,-6635.37,0.00031061,3]
[349237712,1737067833399,-500.0,0.00031061,3]
[349237713,1737067833409,-500.0,0.00031061,3]
[349237714,1737067833420,-500.0,0.00031061,3]
[349237715,1737067833430,-500.0,0.00031061,3]
[349237716,1737067833440,-500.0,0.00031061,3]
[349237717,1737067833451,-570.92678277,0.00031061,3]
[349237718,1737067833461,-503.31622479,0.00031061,3]
[349237719,1737067833471,-500.0,0.00031061,3]
[349237720,1737067833481,-505.68970332,0.00031061,3]
[349237721,1737067833490,-500.0,0.00031061,3]
[349237722,1737067833501,-500.0,0.00031061,3]
[349237723,1737067833510,-500.0,0.00031061,3]
[349237724,1737067833520,-500.0,0.00031061,3]
[349237725,1737067833531,-2161.81,0.00031061,3]
[349237726,1737067833540,-3999.09,0.00031061,3]
[349237727,1737067833550,-500.0,0.00031061,3]
[349237728,1737067833561,-500.0,0.00031061,3]
[349237729,1737067833571,-500.0,0.00031061,3]
[349237730,1737067833581,-500.0,0.00031061,3]
[349237731,1737067833591,-500.0,0.00031061,3]
[349237732,1737067833601,-500.0,0.00031061,3]
[349237733,1737067833611,-2645.94,0.00031061,3]
[349237734,1737067833622,-500.0,0.00031061,3]
[349237735,1737067833633,-500.0,0.00031061,3]
[349237736,1737067833644,-500.0,0.00031061,3]
[349237737,1737067833655,-250.53422674,0.00031061,3]
[349237738,1737067833666,-686.85,0.00031061,3]
[349237739,1737067833677,-500.0,0.00031061,3]
[349237740,1737067833687,-500.0,0.00031061,3]
[349237741,1737067833696,-500.0,0.00031061,3]
[349237742,1737067833707,-3615.97,0.00031061,2]
[349237743,1737067833716,-500.0,0.00031061,3]
[349237744,1737067833725,-500.0,0.00031061,3]
[349237745,1737067833734,-500.0,0.00031061,3]
[349237746,1737067833745,-5132.79,0.00031061,3]
[349237747,1737067833754,-500.0,0.00031061,3]
[349237748,1737067833764,-500.0,0.00031061,3]
[349237749,1737067833774,-500.0,0.00031061,3]
[349237750,1737067833783,-500.0,0.00031061,3]
[349237751,1737067833792,-500.0,0.00031061,3]
[349237752,1737067833803,-500.0,0.00031061,3]
[349237753,1737067833813,-500.0,0.00031061,3]
[349237754,1737067833827,-500.0,0.00031061,3]
[349237755,1737067833837,-500.0,0.00031061,3]
[349237756,1737067833847,-500.0,0.00031061,3]
[349237757,1737067833856,-2284.58,0.00031061,3]
[349237758,1737067833866,-502.51947303,0.00031061,3]
[349237759,1737067833876,-500.0,0.00031061,3]
[349237760,1737067833885,-500.0,0.00031061,3]
[349237761,1737067833894,-6107.95,0.00031061,3]
[349237762,1737067833904,-6107.95,0.00031061,3]
[349237763,1737067833913,-501.17744824,0.00031061,3]
[349237764,1737067833923,-2555.7,0.00031061,3]
[349237765,1737067833933,-500.0,0.00031061,3]
[349237766,1737067833943,-8930.56,0.00031061,3]
[349237767,1737067833953,-500.0,0.00031061,3]
[349237768,1737067833962,-7184.36,0.00031061,3]
[349237769,1737067833971,-7184.36,0.00031061,3]
[349237770,1737067833981,-500.0,0.00031061,3]
[349237771,1737067833991,-500.0,0.00031061,3]
[349237772,1737067834000,-399.75935695,0.00031061,3]
[349237773,1737067834010,-500.0,0.00031061,3]
[349237774,1737067834020,-503.8695343,0.00031061,3]
[349237775,1737067834030,-2827.15,0.00031061,3]
[349237776,1737067834039,-500.0,0.00031061,3]